Cogmind - Beta 13 @@@ ROGUE MODE // 2024.06.30 @ 18:34:05 Player: Duduxx Result: Destroyed by TO-Z1U(R) with Subdweller Machine Gun Performance ------------- Evolutions (0) 0 Regions Visited (3) 600 Robots Destroyed (19) 95 Value Destroyed (489) 489 Prototype IDs (0) 0 Alien Tech Used (0) 0 Bonus (0) 0 TOTAL SCORE: 1184 Bonus ------- None Cogmind --------- Core Integrity 0/250 Matter 151/300 Energy 112/200 System Corruption 0% Temperature Cool (0) Movement Treading (160) Location -10/Subcaves Parts ------- > --- POWER (1) -------- Subdweller Power Source > --- PROPULSION (2) --- Light Treads Light Treads > --- UTILITY (2) ------ Large Storage Unit > --- WEAPON (2) ------- Small Laser > --- INVENTORY (15) --- Small Storage Unit Subdweller Optics Terrain Scan Processor Reaction Control System Improved Trap Extractor (0/6) Particle Gun Grenade Launcher Peak State ------------ > --- POWER ------------ Ion Engine > --- PROPULSION ------- Airjet > --- UTILITY ---------- Large Storage Unit Terrain Scanner > --- WEAPON ----------- Light Assault Rifle Minigun > --- INVENTORY -------- Light Ion Engine Light Treads Light Treads Aluminum Leg Aluminum Leg Small Storage Unit Visual Processing Unit Terrain Scan Processor Reaction Control System Improved Trap Extractor Medium Laser Small Laser Grenade Launcher [Rating: 12] Favorites ----------- Power Light Ion Engine Engine Light Ion Engine Propulsion Aluminum Leg Treads Light Treads Leg Aluminum Leg Hover Unit Airjet Utility Large Storage Unit Device Terrain Scanner Storage Large Storage Unit Weapon Light Assault Rifle Energy Gun Medium Laser Ballistic Gun Light Assault Rifle Launcher Grenade Launcher Special Weapon Flamer Build | -11 -10 -10 -10 ------- Run | Yrd Mat Min Sub Slots Evolved . | . . . . Power . | . . . . Propulsion . | . . . . Utility . | . . . . Weapon . | . . . . Parts Attached 40 | 8 12 9 11 Power 8 | 1 3 2 2 Engine 8 | 1 3 2 2 Core . | . . . . Reactor . | . . . . Propulsion 15 | 4 4 5 2 Treads 4 | 2 . . 2 Leg 10 | 2 4 4 . Wheel . | . . . . Hover 1 | . . 1 . Flight . | . . . . Utility 5 | 1 4 . . Device 2 | . 2 . . Storage 3 | 1 2 . . Processor . | . . . . Hackware . | . . . . Protection . | . . . . Artifact . | . . . . Weapon 12 | 2 1 2 7 Energy Gun 5 | 1 . . 4 Energy Cannon . | . . . . Ballistic Gun 4 | 1 1 2 . Ballistic Cannon . | . . . . Launcher 2 | . . . 2 Special Weapon 1 | . . . 1 Impact Weapon . | . . . . Slashing Weapon . | . . . . Piercing Weapon . | . . . . Special Melee Weapon . | . . . . Unidentified Prototypes . | . . . . Parts Lost 9 | . 1 . 8 Power 2 | . 1 . 1 Propulsion 2 | . . . 2 Utility 1 | . . . 1 Weapon 4 | . . . 4 Highest Loss Streak 5 | . 1 . 5 To Critical Strikes . | . . . . Average Slot Usage (%) 96 | . 89 98 99 Engine 13 | . 13 13 14 Leg 27 | . 26 27 27 Device 11 | . 6 14 13 Storage 14 | . 14 14 14 Energy Gun 13 | . 14 6 18 Ballistic Gun 13 | . 13 20 6 Launcher 1 | . . . 2 Naked Turns . | . . . . Heaviest Build 32 | 11 29 30 32 Greatest Support 40 | 40 20 20 20 Greatest Overweight (x) 9 | . 7 9 2 Average Overweight (x) . | . . 1 1 Largest Inventory Capacity 15 | 8 15 15 15 Average Capacity 14 | 6 12 15 15 Most Carried 14 | 4 8 14 12 Average Carried 8 | 2 6 9 10 Final Capacity 15 | 8 15 15 15 Final Carried 12 | 4 7 12 7 Class Distribution -------------------- 84% | Mutant 15% | Scavenger-Mutant Dominant Class ---------------- Mutant | -10/Materials Mutant | -10/Mines Mutant | -10/Subcaves Resources | -11 -10 -10 -10 ----------- Run | Yrd Mat Min Sub Matter Collected 573 | 194 137 87 155 Remotely . | . . . . Salvage Created 759 | . 346 258 155 Parts 38 | . 14 14 10 Haulers Intercepted . | . . . . Recyclers Shooed 6 | . 4 2 . Parts Field Recycled . | . . . . Retrieved Matter . | . . . . Parts Self-Destructed 3 | . . . 3 Prevented . | . . . . Kills | -11 -10 -10 -10 ------- Run | Yrd Mat Min Sub Combat Hostiles Destroyed 13 | . 8 1 4 Guns 13 | . 8 1 4 Classes Destroyed 6 | . 4 1 1 Builder 1 | . . 1 . Recycler 4 | . 1 3 . Watcher 1 | . 1 . . Swarmer 2 | . 2 . . Grunt 7 | . 6 1 . Subdweller 4 | . . . 4 Best Kill Streak 4 | . 4 3 2 Combat Bots Only 2 | . 2 1 2 Max Kills in Single Turn 2 | . 2 1 1 Gunslinging 1 | . 1 . . Exploded . | . . . . Melee . | . . . . Uniques/NPCs Destroyed . | . . . . Combat | -11 -10 -10 -10 -------- Run | Yrd Mat Min Sub Hostile Shots Fired 93 | . 46 5 42 Missed 25 | . 16 2 7 Damage Taken 1204 | . 328 73 803 Core 250 | . 65 13 172 Absorbed by Shields . | . . . . Core Remaining (%) 100 | 100 . . . Volleys Fired 91 | . 48 13 30 Largest 2 | . 2 2 2 Hottest 140 | . 70 70 140 Shots Fired 177 | . 91 26 60 Gun 168 | . 91 26 51 Cannon . | . . . . Launcher 6 | . . . 6 Special 3 | . . . 3 Kinetic 81 | . 48 17 16 Thermal 90 | . 43 9 38 Explosive 6 | . . . 6 Electromagnetic . | . . . . Robot Hit Streak 12 | . 7 8 12 Robot Miss Streak 5 | . 5 3 2 Penetration Max . | . . . . Secondary Targets 4 | . 3 . 1 Max Gunslinging Chain 1 | . 1 . 1 Shots Hit Robots 104 | . 50 17 37 Core Hits 47 | . 25 10 12 Critical Kills . | . . . . Critical Parts Destroyed . | . . . . Critical Strikes 5 | . 4 1 . Burn 5 | . 4 1 . Melee Attacks . | . . . . Impact . | . . . . Slashing . | . . . . Piercing . | . . . . Sneak Attacks . | . . . . Combat Hostiles . | . . . . Follow-up Attacks . | . . . . Damage Inflicted 1195 | 4 547 204 440 Guns 1067 | . 544 192 331 Cannons . | . . . . Explosions 77 | . . . 77 Melee . | . . . . Ramming 19 | 4 3 12 . Kinetic 486 | . 208 116 162 Thermal 613 | . 336 76 201 Explosive 77 | . . . 77 Electromagnetic . | . . . . Impact . | . . . . Slashing . | . . . . Piercing . | . . . . Highest Corruption . | . . . . Average Corruption . | . . . . Corruption Purged . | . . . . Corruption Blocked . | . . . . Overload Shots . | . . . . Overflow Damage . | . . . . Projectiles . | . . . . Explosions . | . . . . Melee . | . . . . Knockbacks 1 | . . 1 . Impact 1 | . . 1 . Kinetic . | . . . . Secondary . | . . . . Self-Inflicted Damage 49 | . . . 49 Shots 3 | . . . 3 Rammed 2 | 2 . . . Targets Rammed 7 | 3 3 1 . Kicked 5 | 1 3 1 . Crushed . | . . . . Highest Temperature 298 | . 298 60 3 Average Temperature 79 | . 97 22 1 Received Heat Transfer 297 | . 156 21 120 Effects 1 | . 1 . . Interference 1 | . 1 . . Siege Activations . | . . . . Robots Corrupted . | . . . . Combat Hostiles . | . . . . Parts Fried . | . . . . Impact Corruptions . | . . . . Robots Melted . | . . . . Combat Hostiles . | . . . . Parts Melted 7 | . 5 1 1 Heat Transferred 2277 | . 1295 296 686 Parts Sabotaged . | . . . . Parts Stolen . | . . . . Parts Stripped . | . . . . Power Chain Reactions . | . . . . Alert | -11 -10 -10 -10 ------- Run | Yrd Mat Min Sub Peak Influence 147 | . 147 64 . Initial 49 | . . 49 . Average 54 | . 90 35 . Maximum Alert Level . | . . . . Low Security (%) 100 | 100 100 100 . Level 1 . | . . . . Level 2 . | . . . . Level 3 . | . . . . Level 4 . | . . . . Level 5 . | . . . . High Security . | . . . . Max Security . | . . . . Squads Dispatched 3 | . 3 . . Investigation 1 | . 1 . . Extermination . | . . . . Reinforcement 2 | . 2 . . Assault . | . . . . Garrison . | . . . . Intercept . | . . . . Searches Triggered . | . . . . Construction Impeded . | . . . . Haulers Reinforced . | . . . . Active Scanning Responses . | . . . . Cargo Convoy Interrupts . | . . . . Stealth | -11 -10 -10 -10 --------- Run | Yrd Mat Min Sub Distress Signals 3 | . 3 . . Communications Jammed . | . . . . Distress Signals . | . . . . Times Spotted 23 | . 15 2 6 Peak Tracking Total 6 | . 6 2 2 Tactical Retreats 1 | . 1 . . Traps | -11 -10 -10 -10 ------- Run | Yrd Mat Min Sub Traps Triggered 4 | . 4 . . Indirectly . | . . . . Trap Hack Attempts . | . . . . Triggered . | . . . . Disarmed 6 | . 6 . . Reprogrammed 6 | . 6 . . Reused . | . . . . Traps Extracted . | . . . . Installed . | . . . . Triggered . | . . . . Machines | -11 -10 -10 -10 ---------- Run | Yrd Mat Min Sub Machines Disabled . | . . . . Max in Single Turn . | . . . . Machines Repaired . | . . . . Machines Dismantled . | . . . . Machines Sabotaged . | . . . . Overloaded Fab Kills . | . . . . Hacking | -11 -10 -10 -10 --------- Run | Yrd Mat Min Sub Machines Accessed 4 | . 3 1 . Terminals 3 | . 3 . . Fabricators . | . . . . Repair Stations . | . . . . Recycling Units . | . . . . Scanalyzers . | . . . . Garrison Access . | . . . . Total Hacks 14 | . 13 1 . Successful 7 | . 6 1 . Failed 7 | . 7 . . Catastrophic 2 | . 2 . . Database Lockouts . | . . . . Manual 5 | . 5 . . Terminals 13 | . 13 . . Fabricators . | . . . . Repair Stations . | . . . . Recycling Units . | . . . . Scanalyzers . | . . . . Garrison Access . | . . . . Terminal Hacks 7 | . 6 1 . Open Door 1 | . . 1 . Emergency Access Points 1 | . 1 . . Locate Traps 2 | . 2 . . Disarm Traps 1 | . 1 . . Reprogram Traps 1 | . 1 . . Registered Prototypes 1 | . 1 . . Fabricator Hacks . | . . . . Repair Station Hacks . | . . . . Recycling Unit Hacks . | . . . . Scanalyzer . | . . . . Garrison Access Hacks . | . . . . Unauthorized Hacks . | . . . . Terminals . | . . . . Fabricators . | . . . . Repair Stations . | . . . . Recycling Units . | . . . . Scanalyzers . | . . . . Garrison Access . | . . . . Data Cores Recovered . | . . . . Used . | . . . . Hacking Detections 3 | . 3 . . Full Trace Events 2 | . 2 . . Feedback Events . | . . . . Feedback Blocked . | . . . . Robot Schematics Acquired . | . . . . Robots Built . | . . . . Authchips . | . . . . Time . | . . . . Total Robot Build Rating . | . . . . Part Schematics Acquired . | . . . . Parts Built . | . . . . Authchips . | . . . . Time . | . . . . Total Part Build Rating . | . . . . Parts Repaired . | . . . . Time . | . . . . Parts Recycled . | . . . . Recycled Matter . | . . . . Retrieved Matter . | . . . . Retrieved Components . | . . . . Parts Scanalyzed . | . . . . Part Schematics Acquired . | . . . . Parts Damaged . | . . . . Bothacking | -11 -10 -10 -10 ------------ Run | Yrd Mat Min Sub Used RIF Installer . | . . . . Robots Hacked . | . . . . Non-combat . | . . . . Combat . | . . . . Robot Hacks Applied . | . . . . Relay Couplers Released . | . . . . Fabnet Peak Effective % . | . . . . Robots Rewired . | . . . . Allies Hacked . | . . . . Hacks Repelled . | . . . . Allies | -11 -10 -10 -10 -------- Run | Yrd Mat Min Sub Total Allies . | . . . . Largest Group . | . . . . Highest-Rated Group . | . . . . Highest-Rated Ally . | . . . . Total Orders . | . . . . Ally Attacks . | . . . . Total Damage . | . . . . Kills . | . . . . Allies Corrupted . | . . . . Allies Melted . | . . . . Intel | -11 -10 -10 -10 ------- Run | Yrd Mat Min Sub Robot Analysis Total . | . . . . Derelict Logs Recovered 5 | . . 3 2 Drone Launches . | . . . . Drone Recoveries . | . . . . Exploration | -11 -10 -10 -10 ------------- Run | Yrd Mat Min Sub Turns Passed 2509 | 108 643 868 890 Spaces Moved 1190 | 64 295 422 409 Core 13 | 8 2 3 . Treads 42 | 42 . . . Legs 1134 | 14 293 418 409 Wheels . | . . . . Hover 1 | . . 1 . Flight . | . . . . Fastest Speed 50 | 50 120 190 190 Average Speed 182 | 137 165 192 190 Slowest Speed 500 | 160 400 500 260 Overloaded Moves . | . . . . Propulsion Burnouts . | . . . . Robots Hopped . | . . . . Cave-ins Triggered . | . . . . Exploration Rate (%) 33 | 5 41 75 12 Regions Visited 3 Branch Regions 2 Pre-discovered Areas 1 | . . 1 . Known Exits Taken . | . . . . Unknown Exits Taken 3 | 1 1 1 . Scrap Searched . | . . . . Spaces Dug 15 | . . . 15 Terrain Destroyed 33 | . . . 33 Melee . | . . . . Projectile . | . . . . AOE 33 | . . . 33 Terrain Rammed . | . . . . Walls Destroyed . | . . . . Machines Disabled . | . . . . Actions | -11 -10 -10 -10 --------- Run | Yrd Mat Min Sub Total 1357 | 78 363 458 458 Wait . | . . . . Move 1188 | 64 294 421 409 Hop . | . . . . Pick Up 15 | 4 3 4 4 Fast Attach 19 | 6 11 2 . Attach 11 | . 1 4 6 Detach 8 | . 2 6 . Swap 10 | 2 . 3 5 Drop 9 | . 1 4 4 Fire 91 | . 48 13 30 Melee . | . . . . Ram . | . . . . Kick 4 | . 3 1 . Crush 2 | 2 . . . Escape Stasis . | . . . . Rewire . | . . . . Trap . | . . . . Miscellaneous . | . . . . Route ------- -11/Scrapyard -10/Materials -10/Mines -10/Subcaves History --------- Turn | Location | Event 5 | -11/Scrapyard | Discovered new exit (range 14) 109 | -11/Scrapyard | Entered Materials 302 | -10/Materials | Build established: Mutant 564 | -10/Materials | Discovered new exit (range 16) 752 | -10/Materials | Entered Mines 1058 | -10/Mines | Learned Materials garrison access intel 1088 | -10/Mines | Learned 4 Materials zone layouts 1115 | -10/Mines | Learned location of Zion (-6) 1154 | -10/Mines | Met a Derelict who couldn't figure out how to use a Trap Extractor 1597 | -10/Mines | Discovered new exit (range 10) 1620 | -10/Mines | Entered Subcaves 2016 | -10/Subcaves | Core integrity fell below 50% 2110 | -10/Subcaves | A swath of the cavern ceiling suddenly collapsed 2213 | -10/Subcaves | Learned Materials terminal intel 2320 | -10/Subcaves | Build established: Scavenger-Mutant 2505 | -10/Subcaves | Core integrity fell below 20% 2510 | -10/Subcaves | Destroyed by TO-Z1U(R) with Subdweller Machine Gun Last Messages --------------- 02035_ Dropped Lgt. Ion Engine. 02035_ Acquired 35 matter. 02039_ Acquired Sub. Power Source. A swath of the cavern ceiling suddenly collapses. 02165_ The unstable cave ceiling collapses. 02213_ Acquired derelict log, extracted data. Data stored: Materials terminal intel. 02297_ Subatomizers dissect the Sub. Monowheel. 02346_ Subatomizers dissect the Visual Processing Unit. 02426_ The unstable cave ceiling collapses. 02441_ Subatomizers dissect the Visual Processing Unit, destroying it. 02477_ Aluminum Leg destroyed. 02498_ Terrain Scanner destroyed. 02500_ Aluminum Leg destroyed. 02504_ Sub. Power Source destroyed. 02508_ Flamer destroyed. Map ----- +----------------------------------------------------+ | ?????????????????????????????????????????????????? | | ?????????????????????????????????????????????????? | | ?????????????????????????????????????????????????? | | ?#?#?????????????????????????????????????????????? | | ?????????????????????????????????????????????????? | | ?????????????????????????????????????????????????? | | ?????????????????????????????????????????????????? | | ?????????????????????????????????????????????????? | | #????#?????#?????????????????????????????????????? | | #???#???????#????????????????????????????????????? | | #????????#???????????????????????????????????????? | | ?####??????? ??????????????#????????????????????? | | ## ##???#???? ?????????????????? "??????????????? | | # #?#?????????????? ???#??????""??????????????? | | #????#??# ???#" ??????????? ???????????????? | | ##?#???###?"???# ?????? ??? ???????????????? | | ###?????#????? ## ???????? ???????????????? | | #####?###???? ? # ?????? ?? #???????????????? | | ##?# #######?#? ?# " ?? ????? #???????????????? | | #### ###???#??# #?#??????? #???????????????? | | ?### #####??## ###?????# ##??????????????? | | ?### ## ######## ###???#? #??????????????? | | ### ##### ##?# " ##???? #???????????????? | | ## ## &&= ###?# " ##?## ##??????????????? | | && ### " # #??????????????? | | ##&# ### " @ R #????????????????? | | ##### # " R #????????????????? | | ## ###?## " #????????????????? | | #######?# """ # ##??????????????? | | #?##???## # # ##??#???????????????? | | ##??#??####### ####### ##???????????????????? | | ###?##?#??????######?????####????????????????????? | | ????##?????????????????????????#?????????????????? | | #?#####???????#?#????#????#??????????????????????? | | #?#???#?#??#??????????????????#??????????????????? | | ?#?????##??#?????????????#???????#???????????????? | | ?????#???????????????#???????????????????????????? | | ????#???#???#????????#???????????????????????????? | | ?????#???????????????????????????????????????????? | | ????????#????????????????????????????????????????? | | ?????????????????????????????????????????????????? | | ?????????????????????????????????????????????????? | | ?????????????????????????????????????????????????? | | ?????????????????????????????????????????????????? | | ?????????????????????????????????????????????????? | | ?????????????????????????????????????????????????? | | | | | | | | | +----------------------------------------------------+ Best States ------------- Heat Dissipation 25 Energy Generation 15 Energy Capacity 250 Matter Stores 300 Matter Capacity 300 Sight Range 16 Terrain Scan Range 14 Terrain Scan Density 10 Evasion (%) 55 Recoil Reduction 2 Item Schematics ----------------- None Robot Schematics ------------------ None Fabricated ------------ Nothing Alien Tech Used ----------------- None Achievements -------------- None Challenges ------------ None Game ------ Seed HardlightCoilLeg Manual? 0 Play Time 00:15:45 Cumulative 11.3 hours Start 2024.06.30 @ 18:17:12 End 2024.06.30 @ 18:34:05 Sessions 1 Manual Loads 0 Difficulty Rogue Special Mode None Game No. 29 Rogue 29 Adventurer 0 Explorer 0 Win Type - Total 0 Types 0/0/0/0/0/0/0/0/0 Lore% 16 Gallery% 18 Achievement% 16 Wizard Run 0 Options --------- Layout 1 ASCII 0 Keyboard 1 Movement Arrows Keybinds 0 Fullscreen 1 Font 24/Smallcaps Map View 50x35 Zoom Use 0% Tactical HUD 1 Map Filters NONE Filters NONE Steam 1 RUN: fdec4550-6c09-45f9-804f-9f48f376241f